[Event "Early-Titled-Tuesday-Blitz-January-16-2024"]
[Site "Chess.com"]
[Date "2024.01.16"]
[Round "1"]
[White "imdarealist"]
[Black "astralpulse"]
[Result "0-1"]
[WhiteElo "2290"]
[BlackElo "2638"]
[TimeControl "180+1"]
[EndTime "8:07:06 PST"]
[Termination "astralpulse won by checkmate"]

1. d4 {[%clk 0:02:59.8]} 1... d5 {[%clk 0:03:00]} 2. Bf4 {[%clk 0:02:59.7]} 2...
c5 {[%clk 0:02:59.1]} 3. e3 {[%clk 0:02:53.3]} 3... Nc6 {[%clk 0:02:58.9]} 4. c3
{[%clk 0:02:45.5]} 4... Bf5 {[%clk 0:02:58.7]} 5. Nd2 {[%clk 0:02:43.1]} 5... e6
{[%clk 0:02:55.7]} 6. Ngf3 {[%clk 0:02:37.9]} 6... Bd6 {[%clk 0:02:55.6]} 7. Bg3
{[%clk 0:02:33.4]} 7... Nge7 {[%clk 0:02:50.2]} 8. Ne5 {[%clk 0:02:17.6]} 8...
O-O {[%clk 0:02:42.9]} 9. f4 {[%clk 0:02:17.5]} 9... f6 {[%clk 0:02:41]} 10.
Nxc6 {[%clk 0:02:11.9]} 10... Nxc6 {[%clk 0:02:40.2]} 11. Nf3 {[%clk 0:02:10.2]}
11... Qc7 {[%clk 0:02:29.7]} 12. Bd3 {[%clk 0:02:07.7]} 12... Bxd3 {[%clk
0:02:21.9]} 13. Qxd3 {[%clk 0:02:08.6]} 13... cxd4 {[%clk 0:02:07]} 14. Nxd4
{[%clk 0:02:07.5]} 14... Nxd4 {[%clk 0:01:55.5]} 15. cxd4 {[%clk 0:01:49.7]}
15... Qa5+ {[%clk 0:01:51.1]} 16. Kf2 {[%clk 0:01:44.7]} 16... Rac8 {[%clk
0:01:50.2]} 17. a3 {[%clk 0:01:44.6]} 17... Qb6 {[%clk 0:01:44.7]} 18. Qd2
{[%clk 0:01:40.9]} 18... Rc4 {[%clk 0:01:40.4]} 19. Rhc1 {[%clk 0:01:38.8]}
19... Rfc8 {[%clk 0:01:40.6]} 20. Rxc4 {[%clk 0:01:39]} 20... Rxc4 {[%clk
0:01:32.3]} 21. Rc1 {[%clk 0:01:39.4]} 21... Qb3 {[%clk 0:01:32.2]} 22. Rxc4
{[%clk 0:01:33.3]} 22... dxc4 {[%clk 0:01:31.9]} 23. Ke2 {[%clk 0:01:20.1]}
23... b5 {[%clk 0:01:30.5]} 24. Be1 {[%clk 0:01:17.3]} 24... f5 {[%clk
0:01:19.2]} 25. Qc3 {[%clk 0:01:16.8]} 25... Qa4 {[%clk 0:01:13.7]} 26. Qa5
{[%clk 0:01:11.4]} 26... Qc2+ {[%clk 0:01:04.5]} 27. Bd2 {[%clk 0:00:54]} 27...
Qxb2 {[%clk 0:01:03.9]} 28. Qa6 {[%clk 0:00:23.2]} 28... Qxa3 {[%clk 0:00:55]}
29. Qc8+ {[%clk 0:00:20.6]} 29... Kf7 {[%clk 0:00:52.1]} 30. Qd7+ {[%clk
0:00:19.8]} 30... Be7 {[%clk 0:00:51.9]} 31. d5 {[%clk 0:00:19.4]} 31... Qd6
{[%clk 0:00:49]} 32. dxe6+ {[%clk 0:00:18.4]} 32... Qxe6 {[%clk 0:00:49.2]} 33.
Qxb5 {[%clk 0:00:19]} 33... Qe4 {[%clk 0:00:47.2]} 34. Qd7 {[%clk 0:00:13.9]}
34... Qxg2+ {[%clk 0:00:45.9]} 35. Kd1 {[%clk 0:00:14.5]} 35... Qe4 {[%clk
0:00:43.1]} 36. h4 {[%clk 0:00:13.1]} 36... Qd3 {[%clk 0:00:37.2]} 37. Qxa7
{[%clk 0:00:08.3]} 37... c3 {[%clk 0:00:35.4]} 38. Qa2+ {[%clk 0:00:08.3]} 38...
Kf6 {[%clk 0:00:32.6]} 39. Qa1 {[%clk 0:00:06.5]} 39... Qxd2# {[%clk 0:00:32.2]}
0-1

[Event "Early-Titled-Tuesday-Blitz-January-16-2024"]
[Site "Chess.com"]
[Date "2024.01.16"]
[Round "1"]
[White "SARGISMV"]
[Black "platy3"]
[Result "0-1"]
[WhiteElo "2480"]
[BlackElo "2878"]
[TimeControl "180+1"]
[EndTime "8:07:07 PST"]
[Termination "platy3 won by checkmate"]

1. d4 {[%clk 0:03:00.9]} 1... Nf6 {[%clk 0:02:56.7]} 2. Nf3 {[%clk 0:03:00.6]}
2... e6 {[%clk 0:02:56]} 3. c4 {[%clk 0:03:00.7]} 3... d5 {[%clk 0:02:53.6]} 4.
Nc3 {[%clk 0:02:59.9]} 4... c6 {[%clk 0:02:53]} 5. g3 {[%clk 0:02:59.4]} 5...
dxc4 {[%clk 0:02:50.9]} 6. Bg2 {[%clk 0:02:57]} 6... b5 {[%clk 0:02:50.8]} 7.
O-O {[%clk 0:02:56.7]} 7... a6 {[%clk 0:02:49.9]} 8. e4 {[%clk 0:02:53.1]} 8...
Nbd7 {[%clk 0:02:46]} 9. e5 {[%clk 0:02:41.1]} 9... Nd5 {[%clk 0:02:45.1]} 10.
Ne4 {[%clk 0:02:41.7]} 10... c5 {[%clk 0:02:35.3]} 11. Bg5 {[%clk 0:02:34.2]}
11... Qb6 {[%clk 0:02:31.7]} 12. Re1 {[%clk 0:02:16.7]} 12... Bb7 {[%clk
0:02:27.4]} 13. a4 {[%clk 0:02:10]} 13... h6 {[%clk 0:02:25.5]} 14. Bc1 {[%clk
0:01:49.2]} 14... Be7 {[%clk 0:02:19.5]} 15. axb5 {[%clk 0:01:42.9]} 15... axb5
{[%clk 0:02:18.8]} 16. Rxa8+ {[%clk 0:01:43.8]} 16... Bxa8 {[%clk 0:02:19.4]}
17. h4 {[%clk 0:01:32.6]} 17... O-O {[%clk 0:02:15.9]} 18. dxc5 {[%clk
0:01:30.4]} 18... Nxc5 {[%clk 0:02:15.1]} 19. Nxc5 {[%clk 0:01:13.1]} 19... Bxc5
{[%clk 0:02:14.8]} 20. Qe2 {[%clk 0:01:09.7]} 20... Nb4 {[%clk 0:02:13.5]} 21.
Be3 {[%clk 0:01:07.6]} 21... Nd3 {[%clk 0:02:00.7]} 22. Bxc5 {[%clk 0:01:04.9]}
22... Qxc5 {[%clk 0:02:01.6]} 23. Rf1 {[%clk 0:00:55.8]} 23... Bxf3 {[%clk
0:01:54.2]} 24. Bxf3 {[%clk 0:00:53.6]} 24... Qxe5 {[%clk 0:01:53.5]} 25. Qd2
{[%clk 0:00:51.8]} 25... Qxb2 {[%clk 0:01:52]} 26. Qe3 {[%clk 0:00:50.4]} 26...
Qe5 {[%clk 0:01:49.5]} 27. Qb6 {[%clk 0:00:49.8]} 27... Qc5 {[%clk 0:01:48]} 28.
Qb7 {[%clk 0:00:48.1]} 28... c3 {[%clk 0:01:47.1]} 29. Be4 {[%clk 0:00:46.8]}
29... c2 {[%clk 0:01:32.1]} 30. Bxd3 {[%clk 0:00:46.4]} 30... c1=Q {[%clk
0:01:32.2]} 31. Rxc1 {[%clk 0:00:46.9]} 31... Qxc1+ {[%clk 0:01:32.9]} 32. Kg2
{[%clk 0:00:47.6]} 32... Qc8 {[%clk 0:01:26.8]} 33. Qxb5 {[%clk 0:00:44.6]}
33... Qa8+ {[%clk 0:01:26.8]} 34. Kh2 {[%clk 0:00:40.5]} 34... Qd5 {[%clk
0:01:27.2]} 35. Qb1 {[%clk 0:00:38.4]} 35... Rd8 {[%clk 0:01:26.8]} 36. Be4
{[%clk 0:00:38.1]} 36... Qc5 {[%clk 0:01:25.9]} 37. Qb2 {[%clk 0:00:33.4]} 37...
Qd4 {[%clk 0:01:23.1]} 38. Qe2 {[%clk 0:00:28]} 38... Rb8 {[%clk 0:01:21.4]} 39.
Kg2 {[%clk 0:00:19.8]} 39... Rb2 {[%clk 0:01:19.4]} 40. Qf3 {[%clk 0:00:19]}
40... f5 {[%clk 0:01:16.4]} 41. Bc6 {[%clk 0:00:18.7]} 41... g5 {[%clk 0:01:12]}
42. hxg5 {[%clk 0:00:18.5]} 42... hxg5 {[%clk 0:01:12.9]} 43. g4 {[%clk
0:00:09.3]} 43... Qxg4+ {[%clk 0:01:10.6]} 44. Qxg4 {[%clk 0:00:09.7]} 44...
fxg4 {[%clk 0:01:11.5]} 45. Bd7 {[%clk 0:00:09.7]} 45... Kf7 {[%clk 0:01:11.3]}
46. Kg3 {[%clk 0:00:10.6]} 46... Kf6 {[%clk 0:01:10.7]} 47. Bc6 {[%clk 0:00:10]}
47... Kf5 {[%clk 0:01:09.7]} 48. Ba4 {[%clk 0:00:09.2]} 48... Ra2 {[%clk
0:01:08.3]} 49. Bd1 {[%clk 0:00:10.1]} 49... Ra3+ {[%clk 0:01:08.3]} 50. Kg2
{[%clk 0:00:10.1]} 50... Kf4 {[%clk 0:01:08.8]} 51. Be2 {[%clk 0:00:10.5]} 51...
g3 {[%clk 0:01:08.9]} 52. fxg3+ {[%clk 0:00:10.6]} 52... Rxg3+ {[%clk
0:01:09.8]} 53. Kf2 {[%clk 0:00:10.7]} 53... Ra3 {[%clk 0:01:10.6]} 54. Bf3
{[%clk 0:00:11]} 54... e5 {[%clk 0:01:11]} 55. Be2 {[%clk 0:00:10.8]} 55... g4
{[%clk 0:01:11.4]} 56. Kf1 {[%clk 0:00:11.5]} 56... g3 {[%clk 0:01:11.8]} 57.
Kg2 {[%clk 0:00:12.4]} 57... Ra2 {[%clk 0:01:11.8]} 58. Kh3 {[%clk 0:00:12.5]}
58... Rxe2 {[%clk 0:01:11.8]} 59. Kh4 {[%clk 0:00:13]} 59... Rh2# {[%clk
0:01:12.7]} 0-1

[Event "Early-Titled-Tuesday-Blitz-January-16-2024"]
[Site "Chess.com"]
[Date "2024.01.16"]
[Round "1"]
[White "AwareIdea"]
[Black "Grischuk"]
[Result "0-1"]
[WhiteElo "2540"]
[BlackElo "3093"]
[TimeControl "180+1"]
[EndTime "8:07:08 PST"]
[Termination "Grischuk won by resignation"]

1. d4 {[%clk 0:03:00.9]} 1... e6 {[%clk 0:02:48.2]} 2. c4 {[%clk 0:03:01]} 2...
b6 {[%clk 0:02:48.1]} 3. g3 {[%clk 0:02:58.9]} 3... Bb7 {[%clk 0:02:47.7]} 4. d5
{[%clk 0:02:59.2]} 4... Bb4+ {[%clk 0:02:23.7]} 5. Bd2 {[%clk 0:02:55.7]} 5...
a5 {[%clk 0:02:23.6]} 6. Bg2 {[%clk 0:02:51.2]} 6... Nf6 {[%clk 0:02:23.8]} 7.
a3 {[%clk 0:02:40.3]} 7... Bxd2+ {[%clk 0:02:23.7]} 8. Qxd2 {[%clk 0:02:41.2]}
8... Na6 {[%clk 0:02:23.8]} 9. Nc3 {[%clk 0:02:23.3]} 9... Nc5 {[%clk 0:02:24]}
10. Rd1 {[%clk 0:02:17.1]} 10... a4 {[%clk 0:02:23.9]} 11. Nf3 {[%clk
0:02:14.4]} 11... d6 {[%clk 0:02:19.4]} 12. O-O {[%clk 0:02:07.3]} 12... e5
{[%clk 0:02:18.4]} 13. Qc2 {[%clk 0:02:07.1]} 13... O-O {[%clk 0:02:15.2]} 14.
e4 {[%clk 0:02:03.8]} 14... Bc8 {[%clk 0:02:02.6]} 15. h3 {[%clk 0:02:02.4]}
15... Nh5 {[%clk 0:01:50.7]} 16. Nd2 {[%clk 0:01:49.7]} 16... f5 {[%clk
0:01:49.8]} 17. exf5 {[%clk 0:01:41.1]} 17... Bxf5 {[%clk 0:01:50.7]} 18. Nce4
{[%clk 0:01:28.2]} 18... Nf6 {[%clk 0:01:48.1]} 19. Rde1 {[%clk 0:01:13.4]}
19... Kh8 {[%clk 0:01:38.6]} 20. Qc3 {[%clk 0:00:54.6]} 20... Nfxe4 {[%clk
0:01:33.1]} 21. Nxe4 {[%clk 0:00:54.6]} 21... Nxe4 {[%clk 0:01:33.1]} 22. Bxe4
{[%clk 0:00:54.3]} 22... Bxh3 {[%clk 0:01:33]} 23. Bg2 {[%clk 0:00:54.7]} 23...
Qd7 {[%clk 0:01:27.5]} 24. Re4 {[%clk 0:00:51]} 24... Bxg2 {[%clk 0:01:18.8]}
25. Kxg2 {[%clk 0:00:51.9]} 25... Qf5 {[%clk 0:01:17.7]} 26. Qe3 {[%clk
0:00:48.1]} 26... h6 {[%clk 0:01:09.1]} 27. Rh1 {[%clk 0:00:44.2]} 27... Rf6
{[%clk 0:01:04.3]} 28. f3 {[%clk 0:00:24.6]} 28... Raf8 {[%clk 0:01:02.8]} 29.
Rf1 {[%clk 0:00:24.6]} 29... Rg6 {[%clk 0:00:55.6]} 30. Re1 {[%clk 0:00:20.6]}
30... Rg5 {[%clk 0:00:40.1]} 31. Re2 {[%clk 0:00:17.5]} 31... Qg6 {[%clk
0:00:39.8]} 32. g4 {[%clk 0:00:17.3]} 32... Rgf5 {[%clk 0:00:38.6]} 33. Kf2
{[%clk 0:00:16.3]} 33... Rf4 {[%clk 0:00:34.4]} 34. Kg2 {[%clk 0:00:14.1]} 34...
h5 {[%clk 0:00:30.6]} 35. Re1 {[%clk 0:00:07.6]} 35... hxg4 {[%clk 0:00:28.5]}
36. fxg4 {[%clk 0:00:07.2]} 36... Qxg4+ {[%clk 0:00:26]} 37. Qg3 {[%clk
0:00:07.4]} 37... Rxe4 {[%clk 0:00:24.6]} 38. Rxe4 {[%clk 0:00:07.6]} 38...
Qxe4+ {[%clk 0:00:24.5]} 0-1

[Event "Early-Titled-Tuesday-Blitz-January-16-2024"]
[Site "Chess.com"]
[Date "2024.01.16"]
[Round "1"]
[White "GeorgiosSouleidis"]
[Black "the_blue_pill"]
[Result "1-0"]
[WhiteElo "2658"]
[BlackElo "2320"]
[TimeControl "180+1"]
[EndTime "8:07:09 PST"]
[Termination "GeorgiosSouleidis won by resignation"]

1. e4 {[%clk 0:03:00.1]} 1... c5 {[%clk 0:02:54.1]} 2. Be2 {[%clk 0:02:56.4]}
2... Nc6 {[%clk 0:02:51.7]} 3. d3 {[%clk 0:02:56.7]} 3... g6 {[%clk 0:02:51.6]}
4. f4 {[%clk 0:02:56.2]} 4... Bg7 {[%clk 0:02:48.7]} 5. Nf3 {[%clk 0:02:56.5]}
5... d5 {[%clk 0:02:44.5]} 6. O-O {[%clk 0:02:56.5]} 6... dxe4 {[%clk
0:02:36.4]} 7. dxe4 {[%clk 0:02:57.4]} 7... Qxd1 {[%clk 0:02:35.2]} 8. Rxd1
{[%clk 0:02:58.3]} 8... Nd4 {[%clk 0:02:25.4]} 9. Nxd4 {[%clk 0:02:48.5]} 9...
Bxd4+ {[%clk 0:02:15.9]} 10. Kf1 {[%clk 0:02:47.9]} 10... Bd7 {[%clk 0:02:14.9]}
11. e5 {[%clk 0:02:20.2]} 11... f6 {[%clk 0:02:12.1]} 12. c3 {[%clk 0:02:17.6]}
12... fxe5 {[%clk 0:02:12.8]} 13. cxd4 {[%clk 0:02:15.7]} 13... exd4 {[%clk
0:02:13.7]} 14. Bf3 {[%clk 0:02:11.6]} 14... O-O-O {[%clk 0:02:12]} 15. Nd2
{[%clk 0:02:09.8]} 15... Nf6 {[%clk 0:02:04.3]} 16. Ne4 {[%clk 0:02:05.1]} 16...
Nxe4 {[%clk 0:01:55.2]} 17. Bxe4 {[%clk 0:02:06]} 17... Rhf8 {[%clk 0:01:55.1]}
18. Kg1 {[%clk 0:02:03.9]} 18... Kc7 {[%clk 0:01:45.6]} 19. Bd2 {[%clk
0:01:49.4]} 19... Bc6 {[%clk 0:01:45.2]} 20. Re1 {[%clk 0:01:45.4]} 20... Rd7
{[%clk 0:01:32.3]} 21. Bxc6 {[%clk 0:01:45.3]} 21... Kxc6 {[%clk 0:01:32.1]} 22.
Re6+ {[%clk 0:01:45]} 22... Kc7 {[%clk 0:01:26.5]} 23. Rae1 {[%clk 0:01:45.3]}
23... Rf7 {[%clk 0:01:26.9]} 24. a4 {[%clk 0:01:42.1]} 24... b6 {[%clk
0:01:27.4]} 25. g4 {[%clk 0:01:37.9]} 25... Kd8 {[%clk 0:01:27.4]} 26. Kg2
{[%clk 0:01:37.7]} 26... Rd6 {[%clk 0:01:25.5]} 27. Rxd6+ {[%clk 0:01:36.5]}
27... exd6 {[%clk 0:01:25.2]} 28. Kg3 {[%clk 0:01:31]} 28... Re7 {[%clk
0:01:25.4]} 29. Rxe7 {[%clk 0:01:27.6]} 29... Kxe7 {[%clk 0:01:26.3]} 30. f5
{[%clk 0:01:28.1]} 30... a6 {[%clk 0:01:20.3]} 31. fxg6 {[%clk 0:01:27.4]} 31...
hxg6 {[%clk 0:01:19.7]} 32. h4 {[%clk 0:01:27.7]} 32... b5 {[%clk 0:01:19.8]}
33. a5 {[%clk 0:01:15.9]} 33... b4 {[%clk 0:01:11.8]} 34. Kf4 {[%clk 0:00:57.1]}
34... Kf6 {[%clk 0:01:08.7]} 35. h5 {[%clk 0:00:49.6]} 35... gxh5 {[%clk
0:01:07.3]} 36. gxh5 {[%clk 0:00:50.5]} 36... d5 {[%clk 0:01:04.3]} 37. b3
{[%clk 0:00:30.3]} 37... c4 {[%clk 0:01:01.6]} 38. Bxb4 {[%clk 0:00:30.5]} 38...
cxb3 {[%clk 0:00:45.1]} 39. Ba3 {[%clk 0:00:30.7]} 39... Kg7 {[%clk 0:00:36.7]}
40. Bb2 {[%clk 0:00:28.5]} 40... Kh6 {[%clk 0:00:35.4]} 41. Bxd4 {[%clk
0:00:25.5]} 41... Kxh5 {[%clk 0:00:36.3]} 42. Ke5 {[%clk 0:00:26.1]} 42... Kg4
{[%clk 0:00:29]} 43. Kxd5 {[%clk 0:00:26.1]} 43... Kf3 {[%clk 0:00:29.5]} 44.
Kc6 {[%clk 0:00:26.3]} 44... Ke2 {[%clk 0:00:30.4]} 45. Kb6 {[%clk 0:00:25.5]}
45... Kd3 {[%clk 0:00:31.3]} 46. Bh8 {[%clk 0:00:25.3]} 46... Kc4 {[%clk
0:00:28.5]} 47. Kxa6 {[%clk 0:00:25.2]} 47... Kb4 {[%clk 0:00:29.4]} 48. Kb6
{[%clk 0:00:24.8]} 48... b2 {[%clk 0:00:30.1]} 49. Bxb2 {[%clk 0:00:24.1]} 1-0

[Event "Early-Titled-Tuesday-Blitz-January-16-2024"]
[Site "Chess.com"]
[Date "2024.01.16"]
[Round "1"]
[White "KVAIDAN"]
[Black "Egor_Koshulyan"]
[Result "1-0"]
[WhiteElo "2390"]
[BlackElo "2677"]
[TimeControl "180+1"]
[EndTime "8:07:16 PST"]
[Termination "KVAIDAN won by checkmate"]

1. f4 {[%clk 0:03:00.9]} 1... d5 {[%clk 0:02:49.5]} 2. Nf3 {[%clk 0:03:00.7]}
2... Nf6 {[%clk 0:02:49.2]} 3. e3 {[%clk 0:03:00.8]} 3... c5 {[%clk 0:01:36.1]}
4. b3 {[%clk 0:02:56.1]} 4... Nc6 {[%clk 0:01:35.4]} 5. Bb2 {[%clk 0:02:56.7]}
5... Bf5 {[%clk 0:01:34]} 6. Bb5 {[%clk 0:02:57.1]} 6... Rc8 {[%clk 0:01:31.1]}
7. Ne5 {[%clk 0:02:56]} 7... Bd7 {[%clk 0:01:31]} 8. Nf3 {[%clk 0:02:53.7]} 8...
Bg4 {[%clk 0:01:26.3]} 9. h3 {[%clk 0:02:53.1]} 9... Bf5 {[%clk 0:01:25.3]} 10.
Ne5 {[%clk 0:02:51.5]} 10... Bd7 {[%clk 0:01:22.1]} 11. Bxc6 {[%clk 0:02:50.5]}
11... Bxc6 {[%clk 0:01:21.9]} 12. O-O {[%clk 0:02:51.1]} 12... e6 {[%clk
0:01:22.5]} 13. d3 {[%clk 0:02:50.6]} 13... Bd6 {[%clk 0:01:22.7]} 14. Rf3
{[%clk 0:02:48.5]} 14... d4 {[%clk 0:01:19.8]} 15. Rg3 {[%clk 0:02:45]} 15...
O-O {[%clk 0:00:58.8]} 16. Nd2 {[%clk 0:02:43.8]} 16... dxe3 {[%clk 0:00:47.4]}
17. Ndc4 {[%clk 0:02:43.2]} 17... Be7 {[%clk 0:00:44.1]} 18. Nxe3 {[%clk
0:02:41.7]} 18... g6 {[%clk 0:00:41.8]} 19. N3g4 {[%clk 0:02:32.3]} 19... Nxg4
{[%clk 0:00:24.8]} 20. Nxg4 {[%clk 0:02:30.9]} 20... f6 {[%clk 0:00:25.4]} 21.
Qe2 {[%clk 0:02:27.2]} 21... Bd7 {[%clk 0:00:20.6]} 22. Re1 {[%clk 0:02:21]}
22... Qb6 {[%clk 0:00:20.5]} 23. f5 {[%clk 0:02:09.5]} 23... Qd6 {[%clk
0:00:13.2]} 24. fxe6 {[%clk 0:01:49.3]} 24... Bc6 {[%clk 0:00:11.2]} 25. Nh6+
{[%clk 0:01:45.3]} 25... Kh8 {[%clk 0:00:10.5]} 26. Rg4 {[%clk 0:01:33.8]} 26...
Be8 {[%clk 0:00:05.7]} 27. Qf3 {[%clk 0:01:23]} 27... b5 {[%clk 0:00:03.1]} 28.
Nf7+ {[%clk 0:01:13.6]} 28... Bxf7 {[%clk 0:00:03.1]} 29. Bxf6+ {[%clk 0:01:13]}
29... Kg8 {[%clk 0:00:02.7]} 30. exf7+ {[%clk 0:01:08]} 30... Rxf7 {[%clk
0:00:02.8]} 31. Bxe7 {[%clk 0:01:07.9]} 31... Rxe7 {[%clk 0:00:02.2]} 32. Rf1
{[%clk 0:01:06]} 32... Rce8 {[%clk 0:00:01.5]} 33. Rf4 {[%clk 0:01:05.9]} 33...
Re6 {[%clk 0:00:02]} 34. Rf7 {[%clk 0:01:04.3]} 34... c4 {[%clk 0:00:02.7]} 35.
Qb7 {[%clk 0:01:02.3]} 35... R6e7 {[%clk 0:00:03.1]} 36. Rxe7 {[%clk 0:00:58]}
36... Qxe7 {[%clk 0:00:04]} 37. Qxb5 {[%clk 0:00:56.6]} 37... cxd3 {[%clk
0:00:03.7]} 38. Qxd3 {[%clk 0:00:55.7]} 38... Qc5+ {[%clk 0:00:04.3]} 39. Kh1
{[%clk 0:00:49.1]} 39... a5 {[%clk 0:00:04.8]} 40. c4 {[%clk 0:00:48.8]} 40...
Re3 {[%clk 0:00:02.9]} 41. Qd8+ {[%clk 0:00:44.7]} 41... Kg7 {[%clk 0:00:03.5]}
42. Qd7+ {[%clk 0:00:43.8]} 42... Kh6 {[%clk 0:00:02.3]} 43. Qg4 {[%clk
0:00:43.6]} 43... Kg7 {[%clk 0:00:02.4]} 44. Qf4 {[%clk 0:00:41.5]} 44... Re7
{[%clk 0:00:01.5]} 45. Qf8# {[%clk 0:00:40]} 1-0

[Event "Early-Titled-Tuesday-Blitz-January-16-2024"]
[Site "Chess.com"]
[Date "2024.01.16"]
[Round "1"]
[White "Kotofeyca"]
[Black "baki83"]
[Result "0-1"]
[WhiteElo "2461"]
[BlackElo "2856"]
[TimeControl "180+1"]
[EndTime "8:07:17 PST"]
[Termination "baki83 won on time"]

1. d4 {[%clk 0:03:00.9]} 1... d5 {[%clk 0:02:57.7]} 2. c4 {[%clk 0:03:01.1]}
2... dxc4 {[%clk 0:02:58]} 3. Nc3 {[%clk 0:03:01.4]} 3... a6 {[%clk 0:02:56.1]}
4. e4 {[%clk 0:03:00.9]} 4... b5 {[%clk 0:02:56.1]} 5. a4 {[%clk 0:03:00.6]}
5... c6 {[%clk 0:02:50.6]} 6. axb5 {[%clk 0:02:57.6]} 6... cxb5 {[%clk
0:02:50.8]} 7. Nxb5 {[%clk 0:02:54.9]} 7... axb5 {[%clk 0:02:50.9]} 8. Rxa8
{[%clk 0:02:53.9]} 8... Bb7 {[%clk 0:02:51.2]} 9. Ra1 {[%clk 0:02:13.9]} 9...
Bxe4 {[%clk 0:02:49.8]} 10. b3 {[%clk 0:02:13]} 10... Nf6 {[%clk 0:02:36.9]} 11.
bxc4 {[%clk 0:02:12.3]} 11... bxc4 {[%clk 0:02:36.9]} 12. Qa4+ {[%clk
0:01:57.7]} 12... Nc6 {[%clk 0:02:35.3]} 13. f3 {[%clk 0:01:52.5]} 13... Bd5
{[%clk 0:02:15.7]} 14. Bxc4 {[%clk 0:01:52.5]} 14... e6 {[%clk 0:02:13]} 15. Bb5
{[%clk 0:01:23.2]} 15... Qc8 {[%clk 0:01:48.5]} 16. Bg5 {[%clk 0:01:18.9]} 16...
Bd6 {[%clk 0:01:07]} 17. Rc1 {[%clk 0:01:12.8]} 17... Kd7 {[%clk 0:01:06.8]} 18.
Ne2 {[%clk 0:01:04.9]} 18... Qb7 {[%clk 0:01:03]} 19. Nc3 {[%clk 0:00:54]} 19...
Ra8 {[%clk 0:01:01.6]} 20. Qc2 {[%clk 0:00:39.9]} 20... Bb4 {[%clk 0:00:55.9]}
21. Bxc6+ {[%clk 0:00:17.1]} 21... Qxc6 {[%clk 0:00:51.5]} 22. Bxf6 {[%clk
0:00:18]} 22... Ra2 {[%clk 0:00:44.3]} 23. Qd3 {[%clk 0:00:12.9]} 23... Rxg2
{[%clk 0:00:23.9]} 24. Be5 {[%clk 0:00:11]} 24... Bc4 {[%clk 0:00:20.7]} 25. Qe4
{[%clk 0:00:08.1]} 25... Re2+ {[%clk 0:00:18.4]} 26. Qxe2 {[%clk 0:00:06.9]}
26... Bxe2 {[%clk 0:00:18.7]} 27. Kxe2 {[%clk 0:00:07.8]} 27... Bxc3 {[%clk
0:00:19.1]} 28. Rhd1 {[%clk 0:00:06.2]} 28... Qb5+ {[%clk 0:00:16.6]} 29. Kf2
{[%clk 0:00:06.7]} 29... Qb2+ {[%clk 0:00:15.4]} 30. Kg3 {[%clk 0:00:06]} 30...
f6 {[%clk 0:00:15.8]} 31. Bf4 {[%clk 0:00:05.2]} 31... g5 {[%clk 0:00:16]} 32.
Be3 {[%clk 0:00:04.5]} 32... Bb4 {[%clk 0:00:15.6]} 33. Rb1 {[%clk 0:00:03.5]}
33... Bd6+ {[%clk 0:00:15.8]} 34. f4 {[%clk 0:00:02.1]} 34... gxf4+ {[%clk
0:00:16.2]} 35. Bxf4 {[%clk 0:00:02.8]} 35... Qc3+ {[%clk 0:00:16.5]} 36. Kg4
{[%clk 0:00:03.1]} 36... h5+ {[%clk 0:00:16.3]} 0-1

[Event "Early-Titled-Tuesday-Blitz-January-16-2024"]
[Site "Chess.com"]
[Date "2024.01.16"]
[Round "1"]
[White "XDPS"]
[Black "Langua_Chess"]
[Result "1-0"]
[WhiteElo "2899"]
[BlackElo "2486"]
[TimeControl "180+1"]
[EndTime "8:07:21 PST"]
[Termination "XDPS won on time"]

1. Nf3 {[%clk 0:03:00.9]} 1... g6 {[%clk 0:02:35.7]} 2. h4 {[%clk 0:02:53.4]}
2... h6 {[%clk 0:02:34.6]} 3. h5 {[%clk 0:02:49.9]} 3... g5 {[%clk 0:02:34.6]}
4. d4 {[%clk 0:02:50]} 4... Bg7 {[%clk 0:02:34.5]} 5. Nc3 {[%clk 0:02:50.5]}
5... d6 {[%clk 0:02:35]} 6. Qd3 {[%clk 0:02:45.8]} 6... Nc6 {[%clk 0:02:33.7]}
7. a3 {[%clk 0:02:45.1]} 7... Bg4 {[%clk 0:02:33.2]} 8. d5 {[%clk 0:02:38.8]}
8... Ne5 {[%clk 0:02:20.7]} 9. Nxe5 {[%clk 0:02:33.1]} 9... Bxe5 {[%clk
0:02:21.6]} 10. g3 {[%clk 0:02:23.4]} 10... Nf6 {[%clk 0:02:15.7]} 11. f4 {[%clk
0:02:19.4]} 11... gxf4 {[%clk 0:02:08.7]} 12. gxf4 {[%clk 0:02:19.1]} 12...
Bxc3+ {[%clk 0:02:05.5]} 13. Qxc3 {[%clk 0:02:20]} 13... Qd7 {[%clk 0:02:00]}
14. Qd4 {[%clk 0:02:08.8]} 14... c5 {[%clk 0:01:55.4]} 15. Qd3 {[%clk
0:01:55.3]} 15... Bf5 {[%clk 0:01:52.2]} 16. Qc3 {[%clk 0:01:51.4]} 16... Be4
{[%clk 0:01:50.6]} 17. Rg1 {[%clk 0:01:51.7]} 17... O-O-O {[%clk 0:01:47.1]} 18.
Bd2 {[%clk 0:01:44.2]} 18... Kb8 {[%clk 0:01:45.5]} 19. O-O-O {[%clk 0:01:43.7]}
19... Nxd5 {[%clk 0:01:43.1]} 20. Qc4 {[%clk 0:01:34]} 20... f5 {[%clk
0:01:35.9]} 21. Bh3 {[%clk 0:01:30.8]} 21... b5 {[%clk 0:01:31]} 22. Qa2 {[%clk
0:01:27]} 22... Rhg8 {[%clk 0:01:10.1]} 23. Rxg8 {[%clk 0:01:25.9]} 23... Rxg8
{[%clk 0:01:11]} 24. c4 {[%clk 0:01:25.7]} 24... Rg3 {[%clk 0:00:59.8]} 25. Bf1
{[%clk 0:01:21]} 25... Nb6 {[%clk 0:00:39.8]} 26. cxb5 {[%clk 0:01:17.8]} 26...
Qxb5 {[%clk 0:00:40.7]} 27. e3 {[%clk 0:01:18.1]} 27... Qa4 {[%clk 0:00:40.8]}
28. b3 {[%clk 0:01:16.6]} 28... Qe8 {[%clk 0:00:33.6]} 29. Be2 {[%clk
0:01:12.4]} 29... Rg2 {[%clk 0:00:31]} 30. Re1 {[%clk 0:01:12.7]} 30... Qg8
{[%clk 0:00:26.5]} 31. Qb2 {[%clk 0:01:10.5]} 31... Kb7 {[%clk 0:00:22.3]} 32.
Qc3 {[%clk 0:01:09.6]} 32... Nd5 {[%clk 0:00:14]} 33. Qc4 {[%clk 0:01:09.7]}
33... Nc7 {[%clk 0:00:12.9]} 34. Qc3 {[%clk 0:01:06.4]} 34... Nd5 {[%clk
0:00:11.8]} 35. Qa5 {[%clk 0:01:05.8]} 35... Nc7 {[%clk 0:00:11.5]} 36. Kb2
{[%clk 0:00:59.8]} 36... Qd5 {[%clk 0:00:09.8]} 37. Qc3 {[%clk 0:00:58.1]} 37...
Qf7 {[%clk 0:00:04.1]} 38. a4 {[%clk 0:00:55.7]} 38... Qe8 {[%clk 0:00:04.1]}
39. Qa5 {[%clk 0:00:53.7]} 39... Qf7 {[%clk 0:00:02.8]} 40. Ka3 {[%clk
0:00:53.8]} 40... Qf6 {[%clk 0:00:02.5]} 41. Bc3 {[%clk 0:00:50.5]} 41... Qh4
{[%clk 0:00:03.1]} 42. b4 {[%clk 0:00:48.6]} 42... Qh2 {[%clk 0:00:03.6]} 43.
Bc4 {[%clk 0:00:46]} 43... Rc2 {[%clk 0:00:02.9]} 44. bxc5 {[%clk 0:00:42.3]}
1-0